[Event "Azerbaijan Men Championship 2024"]
[Site "Baku"]
[Date "2024.04.16"]
[Round "6.2"]
[White "Suleymanli, Aydin"]
[Black "Iskandarov, Misratdin"]
[Result "1-0"]
[ECO "C77"]
[WhiteElo "2607"]
[BlackElo "2538"]
[Annotator "TA"]
[PlyCount "87"]
[EventDate "2024.04.11"]
[EventType "swiss"]
[EventCountry "AZE"]
[SourceTitle "playchess.com"]
[Source "ChessBase"]
[SourceQuality "1"]
[TimeControl "40/5400+30:1800+30"]

{[%evp 20,87,28,0,35,18,35,30,41,45,45,48,38,37,61,50,93,89,87,87,53,45,61,37,40,0,0,-10,-12,-12,-17,0,0,0,-7,0,-6,0,-16,-14,-9,-13,-4,-2,-9,-6,199,199,199,199,274,288,479,478,465,456,456,442,707,489,1381,1399,1119,528,570,442,477,475,788,785]} 1. e4 {[%emt 0:00:03]} e5 {[%emt 0:00:14]} 2. Nf3 {[%emt 0:00:06]} Nc6 {[%emt 0:00:06]} 3. Bb5 {[%emt 0:00:04]} a6 {[%emt 0:00:07]} 4. Ba4 {[%emt 0:00:06]} Nf6 {[%emt 0:00:07]} 5. O-O {[%emt 0:00:28]} Be7 {[%emt 0:00:09]} 6. d3 {[%emt 0:00:24]} b5 {[%emt 0:00:13]} 7. Bb3 {[%emt 0:00:05]} d6 {[%emt 0:00:07]} 8. a3 {[%emt 0:00:56]} O-O {[%emt 0:01:36]} 9. Nc3 {[%emt 0:00:31]} Na5 {[%emt 0:03:01] is recently more successful than 9...Bg4. C77: Ruy Lopez: 3...a6 4 Ba4 Nf6, unusual lines.} 10. Ba2 {[%emt 0:00:04]} c5 {[%emt 0:00:06]} 11. Nd5 {[%emt 0:07:07]} Nc6 {[%emt 0:01:38]} 12. c3 {[%emt 0:04:34]} h6 {[%emt 0:11:21]} 13. h3 {[%emt 0:00:58]} Be6 {[%emt 0:02:07]} 14. Nxf6+ $146 {[%emt 0:00:08]} ({Predecessor:} 14. Nh4 Rc8 15. Nf5 Bxf5 16. exf5 Nxd5 17. Bxd5 Bf6 18. f4 Ne7 19. Ba2 c4 20. fxe5 dxe5 {½-½ Zelbel,P (2458)-Braeuer,F (2428) Bundesliga 2122 2022 (4.2)}) 14... Bxf6 {[%emt 0:00:08]} 15. Bxe6 {[%emt 0:00:06]} fxe6 {[%emt 0:00:06]} 16. b4 {[%emt 0:00:05]} Rc8 {[%emt 0:06:56]} 17. Be3 {[%emt 0:11:26]} c4 {[%emt 0:19:07]} 18. dxc4 {[%emt 0:03:44]} bxc4 {[%emt 0:00:03]} 19. Qa4 {[%emt 0:03:42]} Nb8 {[%emt 0:09:38]} 20. Rfd1 {[%emt 0:02:57]} Qc7 {[%emt 0:00:23]} 21. Ra2 {[%emt 0:09:49]} Be7 {[%emt 0:04:20]} 22. Rad2 {[%emt 0:00:28]} Nd7 {[%emt 0:06:18]} 23. Rxd6 {[%emt 0:19:07]} (23. Qxa6 Ra8 24. Rxd6 (24. Qb5 $2 Rfb8 $19) 24... Rxa6 25. Rxd7 Qb8 26. Rxe7 Rd8 $17 (26... Rxa3 $2 27. Rdd7 $18)) 23... Bxd6 {[%emt 0:00:20]} 24. Qxa6 {[%emt 0:00:11]} Nf6 {[%emt 0:05:43]} (24... Rxf3 $2 25. gxf3 Nf8 26. Qxd6 $18) 25. Rxd6 {[%emt 0:03:13]} (25. Qxd6 Qxd6 26. Rxd6 Nxe4 27. Rxe6 Nxc3 28. Rxe5 Rfd8 $19) 25... Nxe4 {[%emt 0:00:18]} 26. Rxe6 {[%emt 0:02:07]} Ra8 $1 {[%emt 0:00:15]} 27. Rc6 {[%emt 0:03:50]} Rxa6 {[%emt 0:00:12]} 28. Rxc7 {[%emt 0:00:01]} Nxc3 {[%emt 0:01:16]} 29. Rxc4 {[%emt 0:00:27]} Rxa3 {[%emt 0:00:19]} 30. Nxe5 {[%emt 0:00:37]} Nd5 {[%emt 0:01:04]} 31. Bc5 {[%emt 0:00:20]} Rf4 {[%emt 0:05:58]} 32. Rc1 {[%emt 0:00:38]} Nxb4 $2 {[%emt 0:03:48] [#]} (32... Re4 $11 33. Nf3 Kh7 (33... Nxb4 34. Nd2 $16)) 33. Ng6 $1 $18 {[%emt 0:03:08]} Re4 {[%emt 0:09:22]} 34. f3 {[%emt 0:00:42]} Re6 {[%emt 0:04:20]} (34... Re2 $142) 35. Bxb4 $18 {[%emt 0:00:22]} Ra4 $2 {[%emt 0:00:05]} (35... Ra8 36. Ne7+ Kh7) 36. Rc8+ $18 {[%emt 0:00:43]} Kf7 {[%emt 0:00:15]} 37. Nh8+ {[%emt 0:01:08]} Kf6 {[%emt 0:00:02]} 38. Bc3+ {[%emt 0:00:18]} Kg5 {[%emt 0:01:47]} (38... Ke7 $142 39. Rc7+ (39. Bxg7 Kd7 $18) 39... Ke8 40. Bxg7 (40. Rxg7 Rc4 $18) 40... Ra2 41. Rc8+ Kd7) 39. Bxg7 {[%emt 0:03:03]} Ra2 {[%emt 0:00:31]} (39... Kf4 $142 40. Kh2 h5) 40. Kh2 $18 {[%emt 0:00:00]} Kf4 {[%emt 0:00:00]} 41. Rc3 {[%emt 0:05:04]} h5 {[%emt 0:01:56]} 42. Bd4 {[%emt 0:02:50]} Ree2 {[%emt 0:00:57]} 43. Ng6+ {[%emt 0:00:08]} Kg5 {[%emt 0:00:05]} (43... Kf5 $142 44. Nh4+ Ke6) 44. Nh4 $1 {[%emt 0:00:05]} 1-0

[Event "Azerbaijan Men Championship 2024"]
[Site "Baku"]
[Date "2024.04.16"]
[Round "6.3"]
[White "Guliyev, Namig"]
[Black "Rasulov, Vugar"]
[Result "0-1"]
[ECO "C77"]
[WhiteElo "2509"]
[BlackElo "2551"]
[Annotator "TA"]
[PlyCount "82"]
[EventDate "2024.04.11"]
[EventType "swiss"]
[EventCountry "AZE"]
[SourceTitle "playchess.com"]
[Source "ChessBase"]
[SourceQuality "1"]
[TimeControl "40/5400+30:1800+30"]

{[%evp 16,82,10,14,26,9,19,19,25,31,39,34,30,8,36,27,35,29,69,20,26,7,8,6,6,11,14,6,4,8,12,-35,-7,-29,-35,-43,-45,-65,-45,-46,-50,-50,-50,-50,-50,-481,-486,-478,-495,-496,-464,-1089,-893,-1329,-1304,-1198,-1198,-1272,-1264,-1320,-1292,-1840,-1768,-29989,-29990,-29998,-29991,-29998,-29991]} 1. e4 {[%emt 0:07:09]} e5 {[%emt 0:00:17]} 2. Nf3 {[%emt 0:00:07]} Nc6 {[%emt 0:00:05]} 3. Bb5 {[%emt 0:00:11]} a6 {[%emt 0:00:15]} 4. Ba4 {[%emt 0:00:07]} Nf6 {[%emt 0:00:05]} 5. Nc3 {[%emt 0:05:05]} b5 {[%emt 0:02:24]} 6. Bb3 {[%emt 0:00:09]} Be7 {[%emt 0:02:36]} 7. d3 {[%emt 0:02:38]} O-O {[%emt 0:03:11]} 8. O-O {[%emt 0:10:17]} d6 {[%emt 0:01:57][%cal Bd7d6,Bd6d5][%mdl 32]} 9. a3 {[%emt 0:01:50]} h6 {[%emt 0:11:03]} 10. Ne2 {[%emt 0:05:19]} Be6 {[%emt 0:02:45]} 11. Bxe6 {[%emt 0:00:14]} fxe6 {[%emt 0:00:02] The position is equal.} 12. Ng3 {[%emt 0:00:07]} d5 {[%emt 0:02:52]} 13. Qe2 {[%emt 0:00:55]} Bd6 {[%emt 0:02:09]} 14. c3 {[%emt 0:01:11]} Qd7 {[%emt 0:05:04]} 15. a4 {[%emt 0:02:58]} bxa4 {[%emt 0:03:03]} 16. Rxa4 {[%emt 0:02:32]} Ne7 {[%emt 0:03:51]} 17. Ra5 {[%emt 0:04:03]} (17. Ra2 $14) 17... c5 $11 {[%emt 0:05:27]} 18. Be3 {[%emt 0:04:39]} ({Much worse is} 18. exd5 exd5 (18... Qc7 19. Ra4 $11) 19. Ra1 (19. Nxe5 $2 {too greedy.} Bxe5 20. Rxc5 Bc7 $19) 19... Nc6 $11) 18... Nc6 {[%emt 0:00:53]} 19. Ra2 {[%emt 0:00:29]} a5 {[%emt 0:04:05]} 20. h3 {[%emt 0:02:04]} Rab8 {[%emt 0:01:31]} 21. Nh2 {[%emt 0:01:55]} d4 {[%emt 0:01:25]} 22. Bc1 {[%emt 0:04:13]} Bc7 {[%emt 0:01:53]} 23. c4 {[%emt 0:01:53]} (23. Re1 $11 {was preferrable.}) 23... Rb3 {[%emt 0:01:02]} 24. Qc2 {[%emt 0:02:13]} Rfb8 {[%emt 0:01:39]} 25. Ng4 {[%emt 0:03:28]} Nxg4 {[%emt 0:05:44]} 26. hxg4 {[%emt 0:00:10]} Qf7 {[%emt 0:00:09] Black is more active.} 27. Bd2 {[%emt 0:00:54]} Qg6 {[%emt 0:00:59]} 28. f3 {[%emt 0:00:32]} Bd8 {[%emt 0:00:07]} 29. Rb1 {[%emt 0:07:08]} Bg5 $36 {[%emt 0:01:12][%mdl 2048] Black fights for an advantage.} 30. Bxa5 $2 {[%emt 0:04:41][%mdl 8192] Now White is beyond hope.} (30. Bxg5 $1 $15 Qxg5 31. Nf1) 30... Be3+ $19 {[%emt 0:02:32]} 31. Kf1 {[%emt 0:00:22]} Nxa5 {[%emt 0:03:57]} 32. Rxa5 {[%emt 0:00:13] White is weak on the dark squares} Qg5 {[%emt 0:00:07] And now ...Qh4 would win.} 33. Nh1 {[%emt 0:03:35]} (33. Ra3 $142 Rxa3 34. bxa3) 33... Qh4 {[%emt 0:00:44]} 34. Nf2 {[%emt 0:00:16] [#]} Rc3 $3 {[%emt 0:02:28][%mdl 512]} 35. Qe2 {[%emt 0:01:59] [#]} Rxd3 $3 {[%emt 0:00:23][%mdl 512] Hoping for ...Rd2.} 36. Nh3 {[%emt 0:03:59]} (36. Rba1 Rd2) 36... Rd2 {[%emt 0:00:16]} 37. Qe1 {[%emt 0:00:08]} Qxe1+ {[%emt 0:00:17]} 38. Rxe1 {[%emt 0:01:33]} Rbxb2 {[%emt 0:00:25]} 39. Rxc5 {[%emt 0:00:09]} Rxg2 {[%emt 0:00:18] Black mates.} 40. Rb5 {[%emt 0:00:00]} Rbc2 {[%emt 0:00:00]} 41. g5 hxg5 {[%emt 0:00:40] Weighted Error Value: White=0.82/Black=0.05 (flawless) .  Loses game:     	White=1     	---        Mistake:       	White=3     	---        Inaccurate:     	---       	Black=3      OK:         	White=7     	Black=9      Best:        	White=1     	Black=1} 0-1

[Event "Azerbaijan Men Championship 2024"]
[Site "Baku"]
[Date "2024.04.16"]
[Round "6.4"]
[White "Manafov, Vugar"]
[Black "Babazada, Khazar"]
[Result "1/2-1/2"]
[ECO "E05"]
[WhiteElo "2424"]
[BlackElo "2474"]
[Annotator "TA"]
[PlyCount "59"]
[EventDate "2024.04.11"]
[EventType "swiss"]
[EventCountry "AZE"]
[SourceTitle "playchess.com"]
[Source "ChessBase"]
[SourceQuality "1"]
[TimeControl "40/5400+30:1800+30"]

{[%evp 30,59,0,2,1,0,55,5,16,11,9,0,0,0,0,0,0,0,0,0,0,0,0,0,0,0,0,0,0,0,0,0]} 1. d4 {[%emt 0:03:32]} Nf6 {[%emt 0:00:06]} 2. c4 {[%emt 0:00:15]} e6 {[%emt 0:00:05]} 3. Nf3 {[%emt 0:00:16]} d5 {[%emt 0:00:07]} 4. g3 {[%emt 0:00:43]} Be7 {[%emt 0:00:05]} 5. Bg2 {[%emt 0:00:45]} O-O {[%emt 0:00:19]} 6. O-O {[%emt 0:00:22]} dxc4 {[%emt 0:00:05]} 7. Qc2 {[%emt 0:00:34]} a6 {[%emt 0:00:06]} 8. a4 {[%emt 0:00:34]} Bd7 {[%emt 0:00:06]} 9. Ne5 {[%emt 0:00:41]} Bc6 {[%emt 0:08:57]} 10. Nxc6 {[%emt 0:01:09]} Nxc6 {[%emt 0:00:14]} 11. e3 {[%emt 0:01:39]} Na5 {[%emt 0:08:11]} 12. Nd2 {[%emt 0:02:54]} c5 {[%emt 0:00:21]} 13. dxc5 {[%emt 0:00:44]} Rc8 {[%emt 0:02:16]} 14. b4 {[%emt 0:03:22]} cxb3 {[%emt 0:04:13]} 15. Nxb3 {[%emt 0:00:12]} Nxb3 {[%emt 0:05:36]} 16. Qxb3 {[%emt 0:00:12]} Nd7 $1 {[%emt 0:00:04]} 17. Ba3 {[%emt 0:02:13] Threatens to win with Rfd1.} Bxc5 {[%emt 0:02:59]} (17... Nxc5 $11 18. Bxc5 Bxc5) 18. Rfd1 {[%emt 0:00:33]} ({White should try} 18. Qxb7 $14 Bxa3 19. Rxa3) 18... Bxa3 $11 {[%emt 0:04:41] The position is equal.} 19. Qxa3 {[%emt 0:00:21]} Qc7 {[%emt 0:02:31]} 20. Rac1 {[%emt 0:01:09]} Nc5 {[%emt 0:00:06]} 21. Bxb7 {[%emt 0:00:26]} Qxb7 {[%emt 0:00:24]} 22. Rxc5 {[%emt 0:00:09]} h6 {[%emt 0:00:04]} 23. Rcc1 {[%emt 0:00:47]} Rxc1 {[%emt 0:00:17]} 24. Rxc1 {[%emt 0:00:12]} Rc8 {[%emt 0:00:03]} 25. Rxc8+ {[%emt 0:00:09]} Qxc8 {[%emt 0:00:05] KQ-KQ} 26. Qb3 {[%emt 0:00:27]} Qc1+ {[%emt 0:00:05]} 27. Kg2 {[%emt 0:00:03]} Qc6+ {[%emt 0:00:03]} 28. Kg1 {[%emt 0:00:06]} Qc1+ {[%emt 0:00:04]} 29. Kg2 {[%emt 0:00:02]} Qc6+ {[%emt 0:00:04]} 30. Kg1 {[%emt 0:00:05] Not much happened in this game.   Weighted Error Value: White=0.07 (flawless) /Black=0.06 (flawless) .  Mistake:       	White=1     	Black=1      OK:         	White=3     	Black=5      Best:        	White=3     	Black=1} 1/2-1/2

[Event "Azerbaijan Men Championship 2024"]
[Site "Baku"]
[Date "2024.04.16"]
[Round "6.5"]
[White "Sadikhov, Ulvi"]
[Black "Talibov, Shiroghlan"]
[Result "1-0"]
[ECO "E01"]
[WhiteElo "2497"]
[BlackElo "2373"]
[Annotator "TA"]
[PlyCount "45"]
[EventDate "2024.04.11"]
[EventType "swiss"]
[EventCountry "AZE"]
[SourceTitle "playchess.com"]
[Source "ChessBase"]
[SourceQuality "1"]
[TimeControl "40/5400+30:1800+30"]

{[%evp 18,45,23,16,19,0,15,18,20,0,0,-2,0,0,42,7,13,0,0,0,67,68,332,358,349,332,370,368,430,430]} 1. c4 {[%emt 0:00:04]} e6 {[%emt 0:00:23]} 2. g3 {[%emt 0:00:14]} d5 {[%emt 0:00:06]} 3. Bg2 {[%emt 0:00:05]} Nf6 {[%emt 0:00:05]} 4. Nf3 {[%emt 0:00:07]} Be7 {[%emt 0:00:27]} 5. O-O {[%emt 0:00:25]} O-O {[%emt 0:01:10]} 6. d3 {[%emt 0:04:27]} c5 {[%emt 0:03:15]} 7. cxd5 {[%emt 0:00:30]} Nxd5 {[%emt 0:01:25]} 8. d4 {[%emt 0:00:24]} Nc6 {[%emt 0:04:09]} 9. dxc5 {[%emt 0:03:11]} Bxc5 {[%emt 0:00:10]} 10. a3 {[%emt 0:00:54]} a5 {[%emt 0:18:46]} 11. Qc2 {[%emt 0:00:47]} Qe7 {[%emt 0:07:03]} 12. e4 {[%emt 0:04:23][%cal Be2e4,Be4e5][%mdl 32]} Nb6 {[%emt 0:03:02] The position is equal.} 13. e5 {[%emt 0:07:21]} Nd4 {[%emt 0:08:11]} 14. Qd3 {[%emt 0:30:58]} Nxf3+ {[%emt 0:08:43]} 15. Qxf3 {[%emt 0:00:34]} Bd4 {[%emt 0:03:31][%cal Oe7c7]} 16. Qe2 {[%emt 0:06:40]} Qc5 {[%emt 0:04:03]} 17. Nd2 {[%emt 0:00:06] Threatens to win with Nf3.} Qxe5 {[%emt 0:02:16]} 18. Qd3 {[%emt 0:01:50] [#] Black must now prevent Nf3.} Rd8 {[%emt 0:08:24]} (18... Bxb2 $2 {too greedy.} 19. Bxb2 Qxb2 20. Rab1 $18) (18... Qd6 $11 19. Ne4 Qd7) 19. Nf3 $14 {[%emt 0:00:10]} Qd6 {[%emt 0:06:01][%mdl 8192] This move loses the game for Black.} (19... Qc5 $14 20. Be3 e5) 20. Qxd4 $18 {[%emt 0:00:45]} Qxd4 {[%emt 0:00:05]} 21. Nxd4 {[%emt 0:00:02]} Rxd4 {[%emt 0:00:17]} 22. Be3 {[%emt 0:00:03]} Rd6 {[%emt 0:00:13]} 23. Bc5 {[%emt 0:00:37] Weighted Error Value: White=0.06 (flawless) /Black=0.51.  Loses game:     	---       	Black=1      Mistake:       	---       	Black=1      Inaccurate:     	White=1     	Black=1      OK:         	White=2     	Black=4      Best:        	White=4     	---} 1-0

[Event "Azerbaijan Men Championship 2024"]
[Site "Baku"]
[Date "2024.04.16"]
[Round "6.6"]
[White "Gadimbayli, Abdulla"]
[Black "Hasanzade, Toghrul"]
[Result "1/2-1/2"]
[ECO "C12"]
[WhiteElo "2489"]
[BlackElo "2350"]
[Annotator "TA"]
[PlyCount "80"]
[EventDate "2024.04.11"]
[EventType "swiss"]
[EventCountry "AZE"]
[SourceTitle "playchess.com"]
[Source "ChessBase"]
[SourceQuality "1"]
[TimeControl "40/5400+30:1800+30"]

{[%evp 22,80,6,8,7,17,15,17,20,18,53,38,43,35,36,33,47,47,46,45,33,8,31,33,31,18,37,4,2,2,35,34,51,0,9,9,29,18,33,18,19,0,0,0,20,0,0,0,0,0,0,0,0,0,0,0,0,0,0,0,0]} 1. e4 {[%emt 0:04:11]} e6 {[%emt 0:00:10]} 2. d4 {[%emt 0:00:06]} d5 {[%emt 0:00:04]} 3. Nc3 {[%emt 0:00:31]} Nf6 {[%emt 0:00:27]} 4. Bg5 {[%emt 0:00:24]} Bb4 {[%emt 0:00:30]} 5. e5 {[%emt 0:02:56]} h6 {[%emt 0:00:11]} 6. Bd2 {[%emt 0:01:20]} Bxc3 {[%emt 0:00:06]} 7. bxc3 {[%emt 0:01:45]} Ne4 {[%emt 0:00:05]} 8. Qg4 {[%emt 0:00:04]} Kf8 {[%emt 0:00:08]} 9. Bd3 {[%emt 0:05:08]} Nxd2 {[%emt 0:00:10]} 10. Kxd2 {[%emt 0:00:04]} c5 {[%emt 0:00:06]} 11. Nf3 {[%emt 0:00:20]} Nc6 {[%emt 0:00:18]} 12. dxc5 {[%emt 0:05:38]} Qa5 {[%emt 0:01:13]} 13. Qf4 {[%emt 0:00:53]} Qxc5 {[%emt 0:07:13]} 14. Nd4 {[%emt 0:00:57] Active counter play!} Bd7 {[%emt 0:05:12]} 15. Rhb1 {[%emt 0:08:26]} Nxd4 {[%emt 0:18:43]} (15... Nd8 {keeps more tension.} 16. a4 Rc8 17. Rb3 a6) 16. Qxd4 {[%emt 0:28:18]} Qxd4 {[%emt 0:01:49]} 17. cxd4 {[%emt 0:00:05]} Rb8 {[%emt 0:05:54]} 18. Ba6 {[%emt 0:02:29]} Bc6 {[%emt 0:16:37]} 19. Rb4 {[%emt 0:01:22]} Ke7 {[%emt 0:01:36]} 20. Rab1 {[%emt 0:00:43]} b6 {[%emt 0:00:35]} 21. c4 {[%emt 0:13:36][%cal Bc2c4,Bc4c5][%mdl 32]} Rhd8 {[%emt 0:14:02]} 22. c5 {[%emt 0:04:19][%cal Rc5b6]} Kd7 {[%emt 0:00:23]} 23. Bb5 {[%emt 0:01:13]} Kc7 {[%emt 0:13:23]} 24. Ra4 {[%emt 0:17:42]} Bxb5 {[%emt 0:05:50]} 25. Rxb5 $11 {[%emt 0:00:00][%mdl 4096] Endgame. KRR-KRR} Rb7 {[%emt 0:00:43]} 26. cxb6+ {[%emt 0:00:00]} axb6 {[%emt 0:01:46]} 27. Rb3 {[%emt 0:00:00]} Kd7 {[%emt 0:03:16]} 28. Ra6 {[%emt 0:00:00][%cal Oa2a3]} Rdb8 {[%emt 0:00:38]} 29. h4 {[%emt 0:00:00]} h5 {[%emt 0:00:21]} 30. Rg3 {[%emt 0:00:00]} g6 {[%emt 0:00:08] The position is equal.} 31. Rb3 {[%emt 0:00:00]} b5 {[%emt 0:00:25][%cal Bb6b5,Bb5b4][%mdl 32]} 32. Ke3 {[%emt 0:00:00]} Rc8 {[%emt 0:00:52]} 33. Rd6+ {[%emt 0:00:24]} Ke7 {[%emt 0:00:19]} 34. a4 {[%emt 0:01:05]} b4 {[%emt 0:01:31]} 35. a5 {[%emt 0:00:04]} Rc4 {[%emt 0:01:56]} 36. a6 {[%emt 0:00:34]} Rb5 {[%emt 0:00:37]} 37. a7 {[%emt 0:02:47]} Ra5 {[%emt 0:00:05]} 38. Rb6 {[%emt 0:00:05]} Rxa7 {[%emt 0:00:12]} 39. R6xb4 {[%emt 0:00:05]} Rxb4 {[%emt 0:00:35]} 40. Rxb4 {[%emt 0:00:00]} Kf8 {[%emt 0:00:00] Weighted Error Value: White=0.07 (flawless) /Black=0.08 (flawless) .  Inaccurate:     	White=2     	Black=2      OK:         	White=12    	Black=13     Best:        	---       	Black=1} 1/2-1/2

[Event "Azerbaijan Men Championship 2024"]
[Site "Baku"]
[Date "2024.04.16"]
[Round "6.7"]
[White "Ibrahimli, Murad"]
[Black "Hamidov, Allahverdi"]
[Result "1-0"]
[ECO "D36"]
[WhiteElo "2396"]
[BlackElo "2091"]
[Annotator "TA"]
[PlyCount "61"]
[EventDate "2024.04.11"]
[EventType "swiss"]
[EventCountry "AZE"]
[SourceTitle "playchess.com"]
[Source "ChessBase"]
[SourceQuality "1"]
[TimeControl "40/5400+30:1800+30"]

{[%evp 25,61,43,37,29,29,34,42,43,43,14,47,39,63,54,81,82,71,87,105,88,102,108,118,101,151,141,154,136,237,241,240,239,230,241,245,241,242,249]} 1. c4 {[%emt 0:05:44]} e6 {[%emt 0:00:15]} 2. Nc3 {[%emt 0:00:19]} d5 {[%emt 0:00:04]} 3. d4 {[%emt 0:00:33]} Nf6 {[%emt 0:00:06]} 4. Bg5 {[%emt 0:00:06]} Be7 {[%emt 0:00:14]} 5. e3 {[%emt 0:00:12]} Nbd7 {[%emt 0:01:58]} 6. cxd5 {[%emt 0:01:09]} exd5 {[%emt 0:00:12]} 7. Bd3 {[%emt 0:00:06]} h6 {[%emt 0:00:12]} 8. Bf4 {[%emt 0:01:27]} c6 {[%emt 0:00:44]} 9. h3 {[%emt 0:01:08]} O-O {[%emt 0:00:23]} 10. Nf3 {[%emt 0:00:05]} Re8 {[%emt 0:00:27]} 11. Qc2 {[%emt 0:01:26]} Nf8 {[%emt 0:01:04]} 12. O-O {[%emt 0:08:07]} Bd6 {[%emt 0:03:28]} 13. Bxd6 {[%emt 0:00:42]} Qxd6 {[%emt 0:00:02]} 14. Rab1 {[%emt 0:00:08]} N8d7 {[%emt 0:10:15]} 15. Rfc1 {[%emt 0:07:21]} a5 {[%emt 0:13:13]} 16. a3 {[%emt 0:09:17] White is slightly better.} Qe7 {[%emt 0:06:30]} 17. Nd2 {[%emt 0:02:43]} g6 {[%emt 0:04:17]} 18. Re1 {[%emt 0:13:05]} Nf8 {[%emt 0:05:38]} 19. Na4 {[%emt 0:02:06][%cal Bc3a4,Ba4c5,Bc5b3,Bb3a5][%mdl 32]} Qd8 {[%emt 0:05:54]} 20. b4 {[%emt 0:07:33]} b5 {[%emt 0:07:22]} 21. Nc5 {[%emt 0:00:23]} ({Inferior is} 21. Qxc6 Bd7 22. Qc2 bxa4 $17) 21... axb4 {[%emt 0:00:10]} 22. axb4 {[%emt 0:01:17]} N6d7 {[%emt 0:05:59]} 23. Ncb3 {[%emt 0:09:39]} Re6 {[%emt 0:10:29]} 24. Na5 {[%emt 0:00:28]} Ra6 {[%emt 0:01:44]} ({Black should try} 24... Qf6) 25. Nf3 $16 {[%emt 0:02:37] White is clearly better.} Qe8 {[%emt 0:03:30]} 26. Rec1 {[%emt 0:04:06][%cal Be1c1,Bc1c8,Bc8c5,Bc5c7][%mdl 32] White has more active pieces.} f6 {[%emt 0:01:13] [#]} (26... Rb6 $16 {was necessary.} 27. Ra1 h5) 27. Bxb5 $3 $18 {[%emt 0:00:21][%mdl 512]} cxb5 {[%emt 0:00:24]} 28. Qxc8 {[%emt 0:00:05]} Qxc8 {[%emt 0:01:19]} 29. Rxc8 {[%emt 0:00:10]} Nb6 {[%emt 0:00:10]} 30. Rc5 {[%emt 0:00:32]} Na4 {[%emt 0:00:11]} 31. Rc7 {[%emt 0:01:04] Weighted Error Value: White=0.04 (flawless) /Black=0.19 (very precise) .  Mistake:       	---       	Black=2      Inaccurate:     	White=1     	Black=2      OK:         	White=10    	Black=4      Best:        	White=1     	---} (31. Rxb5 $2 {too greedy.} Nc3 32. Nb3 Nxb1 $19 (32... Nxb5 $2 33. Nc5 $19)) 1-0

[Event "Azerbaijan Men Championship 2024"]
[Site "Baku"]
[Date "2024.04.16"]
[Round "6.8"]
[White "Rustamov, Rustam"]
[Black "Suleymanli, Suleyman"]
[Result "1/2-1/2"]
[ECO "C18"]
[WhiteElo "2261"]
[BlackElo "2246"]
[Annotator "TA"]
[PlyCount "40"]
[EventDate "2024.04.11"]
[EventType "swiss"]
[EventCountry "AZE"]
[SourceTitle "playchess.com"]
[Source "ChessBase"]
[SourceQuality "1"]
[TimeControl "40/5400+30:1800+30"]

{[%evp 18,40,27,6,16,8,17,-21,0,-15,0,-22,-19,-13,-28,-30,0,-17,0,-21,9,-16,0,-22,0]} 1. e4 {[%emt 0:00:02]} e6 {[%emt 0:00:01]} 2. d4 {[%emt 0:00:24]} d5 {[%emt 0:00:00]} 3. Nc3 {[%emt 0:00:07]} Bb4 {[%emt 0:00:04]} 4. e5 {[%emt 0:00:20]} c5 {[%emt 0:00:01]} 5. a3 {[%emt 0:00:13]} Bxc3+ {[%emt 0:00:02]} 6. bxc3 {[%emt 0:00:05]} Ne7 {[%emt 0:00:01]} 7. Qg4 {[%emt 0:00:37]} Qc7 {[%emt 0:00:06]} 8. Bd3 {[%emt 0:01:55]} c4 {[%emt 0:13:58]} 9. Be2 {[%emt 0:00:42]} Nf5 {[%emt 0:01:26]} 10. Nf3 {[%emt 0:03:41]} Nc6 {[%emt 0:05:27]} 11. a4 {[%emt 0:05:45]} Qa5 {[%emt 0:02:01]} 12. Bd2 {[%emt 0:02:04]} Bd7 {[%emt 0:00:23]} 13. O-O {[%emt 0:01:22]} O-O-O {[%emt 0:00:54]} 14. Rfb1 {[%emt 0:11:55]} f6 {[%emt 0:16:11] White must now prevent ...h5.} 15. h4 {[%emt 0:03:27]} fxe5 {[%emt 0:06:19]} 16. dxe5 {[%emt 0:01:38]} Qc7 {[%emt 0:01:33]} 17. Bf4 {[%emt 0:06:00] The position is equal.} Qa5 {[%emt 0:06:09]} 18. Bd2 {[%emt 0:00:59]} Qc7 {[%emt 0:00:02]} 19. Bf4 {[%emt 0:00:10]} Qa5 {[%emt 0:00:02]} 20. Bd2 {[%emt 0:00:22]} Qc7 {[%emt 0:00:19] Not much happened in this game.   Weighted Error Value: White=0.14 (very precise) /Black=0.11 (very precise) .  Inaccurate:     	White=1     	Black=2      OK:         	White=2     	Black=4      Best:        	White=1     	---} 1/2-1/2